Cogmind - Beta 16 @@@ ROGUE MODE // 2026.01.21 @ 22:37:15 Player: YoKa Result: Self-destructed Performance ------------- Evolutions (3) 1500 Regions Visited (6) 1200 Robots Destroyed (51) 255 Value Destroyed (1705) 1705 Prototype IDs (36) 720 Alien Tech Used (0) 0 Bonus (360) 360 TOTAL SCORE: 5740 Bonus ------- Follower Combat Kills 60 Aligned with FarCom 300 Cogmind --------- Core Integrity 462/700 Matter 106/300 Energy 77/100 System Corruption 3% Temperature Cool (0) Movement Flying (35) Location -7/Factory Parts ------- > --- POWER (1) -------- (None) > --- PROPULSION (4) --- Improved VTOL Module > --- UTILITY (6) ------ Hacking Suite System Shield > --- WEAPON (2) ------- Improved Datajack > --- INVENTORY (5) ---- (None) Peak State ------------ > --- POWER ------------ Light Nuclear Core > --- PROPULSION ------- Flying Fortress v7 > --- UTILITY ---------- Medium Storage Unit ECM Suite Hacking Suite Hacking Suite Hacking Suite System Shield > --- WEAPON ----------- Gauss Rifle Gauss Rifle > --- INVENTORY -------- Light Deuterium Engine Improved VTOL Module Improved VTOL Module Improved VTOL Module High-powered Shotgun Gauss Rifle Gauss Rifle Datajack Improved Datajack [Rating: 60] Favorites ----------- Power Ion Engine Engine Ion Engine Power Core Light Nuclear Core Propulsion Improved Aluminum Leg Treads Light Treads Leg Improved Aluminum Leg Flight Unit Improved VTOL Module Utility Hacking Suite Device ECM Suite Storage Medium Storage Unit Hackware Hacking Suite Weapon Gauss Rifle Energy Gun EM Shotgun Ballistic Gun Gauss Rifle Special Melee Weapon Datajack Build | -11 -10 -10 -10 -9 -8 -7 ------- Run | Yrd Mat Min Exi Min Mat Fac Slots Evolved 6 | . . . . . 4 2 Power . | . . . . . . . Propulsion 2 | . . . . . 2 . Utility 4 | . . . . . 2 2 Weapon . | . . . . . . . Parts Attached 42 | 6 10 . 1 3 12 10 Power 7 | 1 1 . . 1 3 1 Engine 5 | 1 1 . . 1 1 1 Core 2 | . . . . . 2 . Reactor . | . . . . . . . Propulsion 10 | 2 2 . . 1 1 4 Treads 2 | 2 . . . . . . Leg 3 | . 2 . . 1 . . Wheel . | . . . . . . . Hover . | . . . . . . . Flight 5 | . . . . . 1 4 Utility 8 | 1 2 . . . 2 3 Device 1 | . . . . . 1 . Storage 2 | 1 1 . . . . . Processor . | . . . . . . . Hackware 5 | . 1 . . . 1 3 Protection . | . . . . . . . Artifact . | . . . . . . . Weapon 17 | 2 5 . 1 1 6 2 Energy Gun 5 | . 3 . . 1 . 1 Energy Cannon . | . . . . . . . Ballistic Gun 10 | 2 2 . . . 6 . Ballistic Cannon . | . . . . . . . Launcher . | . . . . . . . Special Weapon . | . . . . . . . Impact Weapon . | . . . . . . . Slashing Weapon . | . . . . . . . Piercing Weapon . | . . . . . . . Special Melee Weapon 2 | . . . 1 . . 1 Unidentified Prototypes . | . . . . . . . Corrupted Parts 1 | . 1 . . . . . System Corruption 4 | . 4 . . . . . Parts Lost 19 | . . . . 4 3 12 Power 5 | . . . . 1 2 2 Propulsion 5 | . . . . 2 . 3 Utility 4 | . . . . . 1 3 Weapon 5 | . . . . 1 . 4 Highest Loss Streak 9 | . . . . 2 1 9 To Critical Strikes 1 | . . . . . . 1 Average Backups 6 | 2 6 7 6 3 7 6 Power . | . . . . . . . Propulsion 1 | . 1 2 1 1 2 1 Utility . | . . . . . . . Weapon 2 | . 3 4 4 1 2 2 Tool/Special . | . . . . . . . Unused Backups 7 | . 1 . 2 . 3 1 Power . | . . . . . . . Propulsion 4 | . . . 2 . 1 1 Utility 2 | . . . . . 2 . Weapon 1 | . 1 . . . . . Tool/Special . | . . . . . . . Average Slot Usage (%) 81 | . 95 100 83 85 65 78 Engine 8 | . 14 14 14 12 1 1 Core 2 | . . . . . 7 5 Leg 12 | . 23 28 28 17 . . Flight 5 | . . . . . 8 17 Device 2 | . . . . . 8 4 Storage 10 | . 14 14 14 14 9 4 Hackware 15 | . 9 14 14 14 12 28 Energy Gun 6 | . 13 14 . 12 . 1 Ballistic Gun 12 | . 14 14 . 13 16 12 Special Melee Weapon 1 | . . . 12 . . . Peak Build Rating 60 | 6 14 14 13 21 54 60 Average Rating 28 | 4 11 14 11 15 51 48 On Entrance 17 | . 6 14 14 13 21 51 Avg Prop Armor Cover (%) . | . . . . . . . Naked Turns . | . . . . . . . Heaviest Build 29 | 13 21 21 16 26 29 25 Greatest Support 50 | 40 40 26 26 26 50 50 Greatest Overweight (x) 7 | 1 . . . 7 . 1 Average Overweight (x) . | . . . . . . . Largest Inventory Capacity 10 | 8 10 10 10 10 10 10 Average Capacity 9 | 7 9 10 10 10 10 8 Most Carried 10 | 5 10 7 9 7 10 10 Average Carried 6 | 2 7 7 7 6 8 6 Final Capacity 10 | 8 10 10 10 10 10 5 Final Carried 10 | 2 7 7 7 7 10 . Class Distribution -------------------- 65% | Mutant 21% | Hacker-Mutant 6% | Hacker-Sprinter 5% | Scavenger-Mutant Dominant Class ---------------- Mutant | -10/Materials Mutant | -10/Mines Mutant | -10/Exiles Mutant | -9/Mines Mutant | -8/Materials Hacker-Mutant | -7/Factory Resources | -11 -10 -10 -10 -9 -8 -7 ----------- Run | Yrd Mat Min Exi Min Mat Fac Matter Collected 1580 | 124 353 . . 217 744 142 Remotely . | . . . . . . . Salvage Created 1932 | . 462 . . 241 870 359 Parts 127 | . 30 . . 13 54 30 Haulers Intercepted 3 | . 1 . . . 1 1 Recyclers Shooed 1 | . . . . . 1 . Parts Field Recycled . | . . . . . . . Retrieved Matter . | . . . . . . . Parts Self-Destructed . | . . . . . . . Prevented . | . . . . . . . Parts Restored . | . . . . . . . Kills | -11 -10 -10 -10 -9 -8 -7 ------- Run | Yrd Mat Min Exi Min Mat Fac Combat Hostiles Destroyed 37 | . 8 . . 7 18 4 Guns 36 | . 8 . . 7 18 3 AOE 1 | . . . . . . 1 Classes Destroyed 11 | . 4 . . 1 5 1 Worker 3 | . . . . . 1 2 Builder 2 | . . . . . 1 1 Hauler 3 | . 1 . . . 1 1 Operator 5 | . 2 . . . 2 1 Watcher 3 | . 1 . . . . 2 Swarmer 3 | . . . . . 3 . Grunt 25 | . 8 . . 5 10 2 Sentry 3 | . . . . . 2 1 Hunter 3 | . . . . . 3 . Programmer 1 | . . . . . . 1 Assembled 2 | . . . . 2 . . Best Kill Streak 6 | . 3 . . 3 6 4 Combat Bots Only 5 | . 3 . . 3 5 3 Max Kills in Single Turn 2 | . 1 . . 1 2 2 Gunslinging . | . . . . . . . Exploded 1 | . . . . . . 1 Melee . | . . . . . . . Uniques/NPCs Destroyed . | . . . . . . . Combat | -11 -10 -10 -10 -9 -8 -7 -------- Run | Yrd Mat Min Exi Min Mat Fac Hostile Shots Fired 413 | . 26 . . 37 165 185 Missed 166 | . 5 . . 11 69 81 Hits 247 | . 21 . . 26 96 104 Melee 2 | . . . . 2 . . Projectile 245 | . 21 . . 24 96 104 Critical Strikes 5 | . . . . 1 3 1 Damage Taken 3121 | . 257 . . 348 1334 1182 Core 515 | . 39 . . 53 185 238 Absorbed by Shields 40 | . . . . . . 40 Regen/Repaired (Parts) 116 | . . . . . 116 . Core Remaining (%) 76 | 100 . . . 63 66 . Volleys Fired 163 | . 28 . . 24 73 38 Largest 2 | . 2 . . 2 2 2 Hottest 108 | . 90 . . 95 95 108 Shots Fired 311 | . 56 1 . 40 146 68 Gun 311 | . 56 1 . 40 146 68 Cannon . | . . . . . . . Launcher . | . . . . . . . Special . | . . . . . . . Kinetic 257 | . 27 . . 25 145 60 Thermal 10 | . . . . 1 1 8 Explosive . | . . . . . . . Electromagnetic 44 | . 29 1 . 14 . . Robot Hit Streak 12 | . 12 . . 8 8 10 Robot Miss Streak 7 | . 4 2 . 5 7 7 Penetration Max 1 | . . . . . 1 1 Secondary Targets 3 | . . . . 1 2 . Max Gunslinging Chain 1 | . . . . 1 1 . Shots Hit Robots 213 | . 43 . 4 23 99 44 Core Hits 108 | . 26 1 . 13 48 20 Critical Kills 2 | . . . . . 1 1 Critical Parts Destroyed 2 | . . . . . 1 1 Critical Strikes 5 | . . . . . 3 2 Burn 1 | . . . . . 1 . Destroy 4 | . . . . . 2 2 Melee Attacks 7 | . . . 4 . . 3 Impact . | . . . . . . . Slashing . | . . . . . . . Piercing . | . . . . . . . Sneak Attacks 5 | . . . 4 . . 1 Combat Hostiles . | . . . . . . . Follow-up Attacks . | . . . . . . . Damage Inflicted 4251 | . 639 5 . 302 2208 1097 Guns 4053 | . 639 . . 289 2208 917 Cannons . | . . . . . . . Explosions 180 | . . . . . . 180 Melee . | . . . . . . . Ramming 18 | . . 5 . 13 . . Kinetic 3452 | . 274 . . 182 2186 810 Thermal 309 | . . . . . 22 287 Explosive . | . . . . . . . Electromagnetic 472 | . 365 . . 107 . . Impact . | . . . . . . . Slashing . | . . . . . . . Piercing . | . . . . . . . Highest Corruption 4 | . 4 4 4 4 . 3 Average Corruption 3 | . 4 4 4 4 . 2 Corruption Purged . | . . . . . . . Corruption Blocked . | . . . . . . . Effects 35 | . 7 2 7 16 . 3 Message Errors 8 | . 2 . 2 4 . . Matter Fused 8 | . 1 . 2 4 . 1 Heat Flow Errors 3 | . . 1 . 2 . . Energy Discharges 6 | . 2 . 2 2 . . Parts Rejected 1 | . 1 . . . . . Parts Fused 1 | . . . . . . 1 Data Loss (minor) 6 | . 1 . 1 3 . 1 Misfires 2 | . . 1 . 1 . . Overload Shots . | . . . . . . . Overflow Damage 47 | . . . . . . 47 Projectiles . | . . . . . . . Explosions 47 | . . . . . . 47 Melee . | . . . . . . . Knockbacks 1 | . . . . 1 . . Impact 1 | . . . . 1 . . Kinetic . | . . . . . . . Secondary . | . . . . . . . Self-Inflicted Damage 69 | . . . . . . 69 Shots 2 | . . . . . . 2 Rammed . | . . . . . . . Targets Rammed 4 | . . 1 . 3 . . Kicked 4 | . . 1 . 3 . . Crushed . | . . . . . . . Highest Temperature 204 | . 45 106 . 204 108 196 Average Temperature 31 | . 14 45 . 36 23 82 Received Heat Transfer 861 | . 144 . . 165 396 156 Siege Activations . | . . . . . . . Martial Activations . | . . . . . . . Shielding Activations . | . . . . . . . Robots Disrupted . | . . . . . . . Combat Hostiles . | . . . . . . . Robots Corrupted . | . . . . . . . Combat Hostiles . | . . . . . . . Parts Fried 3 | . 3 . . . . . Impact Corruptions . | . . . . . . . Robots Melted . | . . . . . . . Combat Hostiles . | . . . . . . . Parts Melted . | . . . . . . . Heat Transferred 411 | . . . . . 111 300 Parts Sabotaged . | . . . . . . . Parts Stolen . | . . . . . . . Parts Stripped . | . . . . . . . Power Chain Reactions . | . . . . . . . Alert | -11 -10 -10 -10 -9 -8 -7 ------- Run | Yrd Mat Min Exi Min Mat Fac Maximum Alert Level 1 | . . . . . 1 1 Low Security (%) 86 | 100 100 100 . 100 77 63 Level 1 13 | . . . . . 22 36 Level 2 . | . . . . . . . Level 3 . | . . . . . . . Level 4 . | . . . . . . . Level 5 . | . . . . . . . High Security . | . . . . . . . Max Security . | . . . . . . . Peak Influence 325 | . 87 33 . 58 275 325 Initial 104 | . . 33 . . . 104 Average 60 | . 35 14 . 8 88 131 Influence Increases 1519 | . 279 . . 174 525 541 Destroy 0b10 Robot/C 740 | . 160 . . 140 360 80 Destroy 0b10 Robot/NC 80 | . 20 . . . 25 35 Destroy Leader 182 | . 44 . . 20 82 36 Allied During Kill 14 | . . . . 14 . . Successful Hack 63 | . 10 . . . 10 43 Disable Machine 120 | . . . . . 30 90 Destroy Structure 50 | . . . . . 3 47 Partial Spotted 30 | . . . . . 15 15 Lose Combat Pursuer 240 | . 45 . . . . 195 Influence Decreases 1270 | . 192 87 . 174 295 522 Entered New Map 180 | . . 54 . . . 126 Time Decay 910 | . 192 33 . 134 275 276 Lost Part 170 | . . . . 30 20 120 Lost Ally 10 | . . . . 10 . . Squads Dispatched 14 | . 4 . . . 4 6 Investigation 6 | . 2 . . . 2 2 Extermination 2 | . . . . . . 2 Reinforcement 6 | . 2 . . . 2 2 Assault . | . . . . . . . Garrison . | . . . . . . . Intercept . | . . . . . . . Searches Triggered . | . . . . . . . Construction Impeded . | . . . . . . . Haulers Reinforced . | . . . . . . . Active Scanning Responses . | . . . . . . . Cargo Convoy Interrupts . | . . . . . . . Stealth | -11 -10 -10 -10 -9 -8 -7 --------- Run | Yrd Mat Min Exi Min Mat Fac Distress Signals 9 | . 1 . . 1 4 3 Communications Jammed . | . . . . . . . Distress Signals . | . . . . . . . Times Spotted 109 | . 18 . . 9 43 39 Peak Tracking Total 11 | . 4 . . 3 7 11 Tactical Retreats 17 | . 3 . . 1 4 9 ECM-based Alert Blocks 18 | . . . . . 14 4 Traps | -11 -10 -10 -10 -9 -8 -7 ------- Run | Yrd Mat Min Exi Min Mat Fac Traps Triggered 9 | . 2 . . . 4 3 Indirectly . | . . . . . . . Trap Hack Attempts 1 | . . . . . . 1 Triggered . | . . . . . . . Disarmed 1 | . . . . . . 1 Reprogrammed . | . . . . . . . Reused . | . . . . . . . Traps Extracted . | . . . . . . . Installed . | . . . . . . . Triggered . | . . . . . . . Machines | -11 -10 -10 -10 -9 -8 -7 ---------- Run | Yrd Mat Min Exi Min Mat Fac Machines Disabled 8 | . . . . . 2 6 Max in Single Turn 5 | . . . . . 1 5 Garrison Access 1 | . . . . . 1 . Machines Repaired . | . . . . . . . Machines Dismantled . | . . . . . . . Machines Sabotaged . | . . . . . . . Overloaded Fab Kills . | . . . . . . . Hacking | -11 -10 -10 -10 -9 -8 -7 --------- Run | Yrd Mat Min Exi Min Mat Fac Machines Accessed 20 | . 5 . 2 . 7 6 Terminals 12 | . 5 . . . 3 4 Fabricators 1 | . . . . . . 1 Repair Stations 1 | . . . . . 1 . Recycling Units . | . . . . . . . Scanalyzers 3 | . . . . . 2 1 Garrison Access 1 | . . . . . 1 . Total Hacks 68 | . 20 . 5 . 24 19 Successful 49 | . 10 . 5 . 19 15 Failed 19 | . 10 . . . 5 4 Catastrophic . | . . . . . . . Database Lockouts . | . . . . . . . Manual 46 | . 20 . 1 . 11 14 Terminals 46 | . 20 . . . 12 14 Fabricators 3 | . . . . . . 3 Repair Stations 2 | . . . . . 2 . Recycling Units . | . . . . . . . Scanalyzers 11 | . . . . . 9 2 Garrison Access 1 | . . . . . 1 . Terminal Hacks 18 | . 2 . 5 . 3 8 Record 6 | . . . 4 . 1 1 Open DSF 1 | . . . . . . 1 Branch Access Points 2 | . 1 . . . . 1 Terminal Index 2 | . 1 . . . . 1 Fabricator Index 2 | . . . . . . 2 Recall Investigation 2 | . . . . . 1 1 Recall Assault 1 | . . . . . 1 . Zone Layout 1 | . . . . . . 1 Proto ID Catalog 1 | . . . 1 . . . Fabricator Hacks 2 | . . . . . . 2 Load Schematic 1 | . . . . . . 1 Build 1 | . . . . . . 1 Repair Station Hacks 2 | . . . . . 2 . Scan Component 1 | . . . . . 1 . Repair 1 | . . . . . 1 . Recycling Unit Hacks . | . . . . . . . Scanalyzer 11 | . . . . . 9 2 Insert Component 6 | . . . . . 5 1 Analyze 4 | . . . . . 3 1 Retrieve Study 1 | . . . . . 1 . Garrison Access Hacks 1 | . . . . . 1 . Seal Access 1 | . . . . . 1 . Unauthorized Hacks 15 | . 8 . . . 4 3 Terminals 15 | . 8 . . . 4 3 Assimilate 6 | . 4 . . . 1 1 Botnet 5 | . 2 . . . 2 1 Operators 4 | . 2 . . . 1 1 Fabricators . | . . . . . . . Repair Stations . | . . . . . . . Recycling Units . | . . . . . . . Scanalyzers . | . . . . . . . Garrison Access . | . . . . . . . Data Cores Recovered . | . . . . . . . Used . | . . . . . . . Hacking Detections 15 | . 5 . . . 6 4 Full Trace Events 6 | . 1 . . . 3 2 Feedback Events . | . . . . . . . Feedback Blocked . | . . . . . . . Robot Schematics Acquired . | . . . . . . . Robots Built . | . . . . . . . Authchips . | . . . . . . . Time . | . . . . . . . Total Robot Build Rating . | . . . . . . . Part Schematics Acquired 4 | . . . . . 3 1 Parts Built 1 | . . . . . . 1 Authchips . | . . . . . . . Time 58 | . . . . . . 58 Total Part Build Rating 3 | . . . . . . 3 Part Studies Acquired . | . . . . . . . Parts Repaired 1 | . . . . . 1 . Time 44 | . . . . . 44 . Parts Recycled . | . . . . . . . Recycled Matter . | . . . . . . . Retrieved Matter . | . . . . . . . Retrieved Components . | . . . . . . . Parts Scanalyzed 4 | . . . . . 3 1 Part Schematics Acquired 4 | . . . . . 3 1 Parts Damaged . | . . . . . . . Bothacking | -11 -10 -10 -10 -9 -8 -7 ------------ Run | Yrd Mat Min Exi Min Mat Fac Used RIF Installer . | . . . . . . . Robots Hacked 5 | . . . 3 . . 2 Non-combat 3 | . . . 2 . . 1 Combat 2 | . . . 1 . . 1 Robot Hacks Applied 6 | . . . 4 . . 2 parse_system 5 | . . . 4 . . 1 no_distress 1 | . . . . . . 1 Relay Couplers Released . | . . . . . . . Fabnet Peak Effective % . | . . . . . . . Robots Rewired . | . . . . . . . Allies Hacked . | . . . . . . . Hacks Repelled . | . . . . . . . Allies | -11 -10 -10 -10 -9 -8 -7 -------- Run | Yrd Mat Min Exi Min Mat Fac Total Allies 2 | . . . . 2 . . Largest Group 2 | . . . . 2 1 . Highest-Rated Group 38 | . . . . 38 7 . Highest-Rated Ally 31 | . . . . 31 7 . Total Orders . | . . . . . . . Ally Attacks 15 | . . . . 15 . . Total Damage 170 | . . . . 170 . . Kills 2 | . . . . 2 . . Allies Corrupted . | . . . . . . . Allies Melted . | . . . . . . . Intel | -11 -10 -10 -10 -9 -8 -7 ------- Run | Yrd Mat Min Exi Min Mat Fac Active Infowar (turns) 1201 | . . . . . 827 374 ECM 1201 | . . . . . 827 374 Robot Analysis Total . | . . . . . . . Derelict Logs Recovered 1 | . . . . 1 . . Drone Launches . | . . . . . . . Drone Recoveries . | . . . . . . . Exploration | -11 -10 -10 -10 -9 -8 -7 ------------- Run | Yrd Mat Min Exi Min Mat Fac Turns Passed 3450 | 63 591 96 360 863 854 623 Spaces Moved 2600 | 40 325 80 263 353 591 948 Core 19 | 13 . . . 6 . . Treads 73 | 27 46 . . . . . Legs 969 | . 279 80 263 347 . . Wheels . | . . . . . . . Hover . | . . . . . . . Flight 1539 | . . . . . 591 948 Fastest Speed 26 | 50 120 120 120 120 50 26 Average Speed 80 | 125 125 120 120 156 50 39 Slowest Speed 400 | 160 160 120 120 400 50 99 Overloaded Moves . | . . . . . . . Propulsion Burnouts . | . . . . . . . Robots Hopped 4 | . . . . . . 4 Potential Cave-ins . | . . . . . . . Cave-ins Triggered . | . . . . . . . Exploration Rate (%) 40 | 4 61 23 61 63 48 20 Regions Visited 6 Branch Regions 3 Pre-discovered Areas 1 | . . . 1 . . . Known Exits Taken 1 | . 1 . . . . . Unknown Exits Taken 5 | 1 . 1 1 1 1 . Scrap Searched 2 | . . . . 2 . . Spaces Dug . | . . . . . . . Terrain Destroyed 52 | . . . . . 2 50 Melee . | . . . . . . . Projectile 2 | . . . . . 2 . AOE 50 | . . . . . . 50 Terrain Rammed . | . . . . . . . Walls Destroyed . | . . . . . . . Machines Disabled . | . . . . . . . Actions | -11 -10 -10 -10 -9 -8 -7 --------- Run | Yrd Mat Min Exi Min Mat Fac Total 3638 | 52 447 80 309 622 1001 1127 Wait 722 | . 62 . 34 233 288 105 Move 2587 | 39 324 79 262 352 590 941 Hop 3 | . . . . . . 3 Pick Up 47 | 7 12 . 1 4 20 3 Fast Attach 4 | 1 . . . . 1 2 Attach 27 | 5 2 . 1 4 6 9 Detach 3 | . . . 2 . 1 . Swap 31 | . 14 . . 2 12 3 Drop 26 | . 5 . 5 . 10 6 Fire 163 | . 28 . . 24 73 38 Melee 7 | . . . 4 . . 3 Ram . | . . . . . . . Kick 4 | . . 1 . 3 . . Crush . | . . . . . . . Escape Stasis 13 | . . . . . . 13 Rewire . | . . . . . . . Trap 1 | . . . . . . 1 Miscellaneous . | . . . . . . . Route ------- -11/Scrapyard -10/Materials (discovered 3 exits: [*Mat] / *Min x2) -10/Mines -10/Exiles -9/Mines -8/Materials -7/Factory (discovered 2 exits: Low x2) History --------- Turn | Location | Event 7 | -11/Scrapyard | Discovered new exit (range 15) 64 | -11/Scrapyard | Entered Materials 317 | -10/Materials | Build established: Mutant 379 | -10/Materials | Discovered new exit (range 12) 472 | -10/Materials | Discovered new exit (range 16) 542 | -10/Materials | Identified exit to Mines 655 | -10/Materials | Entered Mines 745 | -10/Mines | Deemed a non-threat by the Exiles lab entrance 747 | -10/Mines | Discovered new exit (range 5) 751 | -10/Mines | Entered Exiles 784 | -10/Exiles | Met 8R-AWN 807 | -10/Exiles | Met EX-HEX 840 | -10/Exiles | Met EX-BIN 900 | -10/Exiles | Aligned with FarCom system 901 | -10/Exiles | Given EX-Vault access code 928 | -10/Exiles | Opened EX-Vault 939 | -10/Exiles | Found Flying Fortress v7 963 | -10/Exiles | Warned to stay clear of 0b10 Research branches 981 | -10/Exiles | Exiles lab attacked by MAIN.C 1009 | -10/Exiles | Learned location of Zion (-6) 1096 | -10/Exiles | Discovered new exit (range 14) 1111 | -10/Exiles | Left Exiles lab with Flying Fortress v7 1111 | -10/Exiles | Entered Mines 1444 | -9/Mines | Excavation squad dispatched 1444 | -9/Mines | A large section of the Mines collapsed 1953 | -9/Mines | Discovered new exit (range 9) 1974 | -9/Mines | Entered Materials 1974 | -8/Materials | Accompanied by 1 ally 1974 | -8/Materials | Evolved 4 slots: Propulsion x2, Utility x2 2271 | -8/Materials | Build established: Hacker-Mutant 2645 | -8/Materials | Build established: Mutant 2791 | -8/Materials | Repaired Gauss Rifle 2825 | -8/Materials | Discovered new exit (range 6) 2828 | -8/Materials | Entered Factory 2828 | -7/Factory | Evolved 2 slots: Utility x2 2948 | -7/Factory | Identified exit to Lower Caves 3150 | -7/Factory | Build established: Hacker-Mutant 3190 | -7/Factory | Fabricated Imp. VTOL Module (x1) 3451 | -7/Factory | Self-destructed Last Messages --------------- Gatling Laser destroyed. Hacking Suite destroyed. Slug penetrates P-60 Hacker. Destroyed Shock Rifle. Imp. VTOL Module destroyed. Penetrated by Slug. Lgt. Deuterium Engine destroyed. Slug penetrates Wall. Penetrated by Slug. Imp. VTOL Module destroyed. S-27 Virus destroyed. Penetrated by Slug. Hacking Suite destroyed. Gauss Rifle destroyed. Slug penetrates Wall. Imp. VTOL Module destroyed. Jacked H-55 Commando... >>parse_system Reading system data... Jacked H-55 Commando... Map ----- +----------------------------------------------------+ | ?#####+##+## #??# # #??# | | ?# # #??############# #### | | ?# # #?????######## ## | | ?# ##########?????# ## | | ?# #??????????????# ! | | ?#! #??????????????# ^ | | ?# #??????????????# | | ?# ! #??????????????# ### | | ?# #??????????????# ## #?? | | ?###########??????????????#p ##########?? | | ??????????????????????????# #??????????? | | ??????????????????????????# #??????????? | | ??????????????????????????# #??????????? | | ??????????????????????????# #??????????? | | ????????????????########### #??????????? | | ????????????????#! """"" # #??????????? | | ????????????????# ""T"" # #??????????? | | ????????????????# # #??????????? | | ????????????????# """ """ + +??????????? | | ????????????????# """g""" # #??????????? | | ????????????????# """ """ # #??????????? | | ????????????????# = g # #??????????? | | ????????????????# *%=gs # #??????????? | | ????????????????###s####### #??????????? | | ??????????????????#[#?????# #??????????? | | ??????????????????#@#?????# ######?????? | | ???????????????#### ####### ?????? | | ???????????????# h h s #????????? | | ???????????????# #????????? | | ???????????????# =! #????????? | | ???????????????# !] =! #????????? | | ???????????????# ![ =! #????????? | | ???????????????# ! %"" #????????? | | ?????????? + """ #????????? | | ?????????" # """ #????????? | | ?????????" w# """ #????????? | | ?????????? ?# #????????? | | ?????????? ?# #????????? | | ?????????? ??##############+#######??????? | | ??????????? ??????????# #??????? | | ??????????????????????# #??????? | | ??????????????????????# #??????? | | ??????????????????????# #??????? | | ??????????????????????# #??????? | | ??????????????????????# #??????? | | ??????????????????????# #??????? | | ??????????????????????# #??????? | | ??????????????????????# #??????? | | ??????????????????????# #??????? | | ??????????????????????# #??????? | +----------------------------------------------------+ Best States ------------- Heat Dissipation 34 Energy Generation 18 Energy Capacity 250 Matter Stores 300 Matter Capacity 300 Sight Range 16 Terrain Scan Density 10 ECM Strength 1 Evasion (%) 64 Recoil Reduction 2 Offensive Hacking 30 Defensive Hacking 10 Item Schematics ----------------- Imp. VTOL Module | -8/Materials | Scanalyzed Hacking Suite | -8/Materials | Scanalyzed Imp. Datajack | -8/Materials | Scanalyzed Cld. VTOL Module | -7/Factory | Scanalyzed Robot Schematics ------------------ None Fabricated ------------ Imp. VTOL Module | x1 | -7/Factory Repaired ---------- Gauss Rifle | 17% | -8/Materials Studied --------- None Alien Tech Used ----------------- None Achievements -------------- Safety First Challenges ------------ None Game ------ Seed AutogunBiocellMaul Manual? 0 Play Time 00:49:34 Cumulative 12.5 hours Start 2026.01.21 @ 21:46:06 End 2026.01.21 @ 22:37:15 Sessions 1 Manual Loads 0 Difficulty Rogue Special Mode None Game No. 22 Rogue 22 Adventurer 0 Explorer 0 Win Type - Total 0 Types 0/0/0/0/0/0/0/0/0/0 Lore% 12 Gallery% 17 Achievement% 16 Wizard Run 0 Options --------- Layout 2 ASCII 0 Keyboard 0 Movement Mouse Keybinds 0 Fullscreen 1 Font 24/Smallcaps Map View 50x44 Zoom Use 0% Tactical HUD 0 Map Filters NONE Filters NONE Steam 1 RUN: 0f7f5002-c8a8-4334-88cb-0d4894acbe9e